[Event "Titled Tuesday Blitz August 02 Early 2022"]
[White "Wu, Derek"]
[Black "Malyi, Viacheslav"]
[WhiteFideId "30914558"]
[BlackFideId "14123983"]
[WhiteElo "2071"]
[BlackElo "2210"]
[Result "1/2-1/2"]
[Round "08"]
[TimeControl "180+1"]
[Date "2022.08.02"]
[WhiteClock "0:00:03"]
[BlackClock "0:00:07"]

1. e4 {[%clk 0:03:00]}  e5 {[%clk 0:02:59]} 2. Nf3 {[%clk 0:02:50]}  Nc6 {[%clk 0:02:59]} 3. Bb5 {[%clk 0:02:50]}  a6 {[%clk 0:02:59]} 4. Ba4 {[%clk 0:02:49]}  Nf6 {[%clk 0:02:58]} 5. O-O {[%clk 0:02:48]}  b5 {[%clk 0:02:58]} 6. Bb3 {[%clk 0:02:47]}  Be7 {[%clk 0:02:59]} 7. d3 {[%clk 0:02:47]}  d6 {[%clk 0:02:59]} 8. a4 {[%clk 0:02:47]}  Rb8 {[%clk 0:02:58]} 9. axb5 {[%clk 0:02:46]}  axb5 {[%clk 0:02:59]} 10. Nc3 {[%clk 0:02:45]}  O-O {[%clk 0:02:58]} 11. h3 {[%clk 0:02:46]}  Nd4 {[%clk 0:02:56]} 12. Nxd4 {[%clk 0:02:45]}  exd4 {[%clk 0:02:57]} 13. Nd5 {[%clk 0:02:43]}  Nxd5 {[%clk 0:02:49]} 14. Bxd5 {[%clk 0:02:44]}  Be6 {[%clk 0:02:35]} 15. Bxe6 {[%clk 0:02:43]}  fxe6 {[%clk 0:02:36]} 16. Qg4 {[%clk 0:02:43]}  Qd7 {[%clk 0:02:32]} 17. f4 {[%clk 0:02:40]}  Ra8 {[%clk 0:02:19]} 18. Bd2 {[%clk 0:02:40]}  Bf6 {[%clk 0:02:11]} 19. Qe2 {[%clk 0:02:31]}  e5 {[%clk 0:02:04]} 20. f5 {[%clk 0:02:19]}  Qc6 {[%clk 0:01:55]} 21. Rxa8 {[%clk 0:02:11]}  Rxa8 {[%clk 0:01:54]} 22. Rc1 {[%clk 0:02:11]}  Ra2 {[%clk 0:01:50]} 23. g4 {[%clk 0:02:03]}  h6 {[%clk 0:01:47]} 24. Qe1 {[%clk 0:01:39]}  Rxb2 {[%clk 0:01:44]} 25. h4 {[%clk 0:01:39]}  Rxc2 {[%clk 0:01:33]} 26. g5 {[%clk 0:01:34]}  Rxc1 {[%clk 0:01:27]} 27. Bxc1 {[%clk 0:01:34]}  hxg5 {[%clk 0:01:16]} 28. hxg5 {[%clk 0:01:32]}  Be7 {[%clk 0:01:16]} 29. Qd1 {[%clk 0:01:21]}  Kf8 {[%clk 0:01:05]} 30. Bd2 {[%clk 0:01:14]}  Ke8 {[%clk 0:01:02]} 31. Qh5+ {[%clk 0:01:09]}  Kd7 {[%clk 0:01:01]} 32. Kf2 {[%clk 0:00:55]}  d5 {[%clk 0:00:45]} 33. f6 {[%clk 0:00:49]}  gxf6 {[%clk 0:00:39]} 34. g6 {[%clk 0:00:49]}  Qc2 {[%clk 0:00:25]} 35. Ke2 {[%clk 0:00:46]}  dxe4 {[%clk 0:00:25]} 36. Qf5+ {[%clk 0:00:44]}  Ke8 {[%clk 0:00:19]} 37. dxe4 {[%clk 0:00:30]}  Bb4 {[%clk 0:00:15]} 38. Qe6+ {[%clk 0:00:18]}  Kd8 {[%clk 0:00:15]} 39. Qd5+ {[%clk 0:00:10]}  Kc8 {[%clk 0:00:09]} 40. Qa8+ {[%clk 0:00:10]}  Kd7 {[%clk 0:00:09]} 41. Qd5+ {[%clk 0:00:08]}  Kc8 {[%clk 0:00:06]} 42. Qa8+ {[%clk 0:00:03]}  Kd7 {[%clk 0:00:07]} 43. Qd5+ {[%clk 0:00:03]}  Kc8 {[%clk 0:00:07]} 1/2-1/2


[Site "https://www.chess.com"]

[Event "Titled Tuesday Blitz August 02 Early 2022"]
[White "Xiong, Jeffery"]
[Black "Gareyev, Timur"]
[WhiteFideId "2047640"]
[BlackFideId "14200937"]
[WhiteElo "2996"]
[BlackElo "2874"]
[Result "1-0"]
[Round "08"]
[TimeControl "180+1"]
[Date "2022.08.02"]
[WhiteClock "0:00:42"]
[BlackClock "0:00:01"]

1. d4 {[%clk 0:02:59]}  d6 {[%clk 0:02:53]} 2. Nf3 {[%clk 0:02:58]}  Bf5 {[%clk 0:02:52]} 3. Nc3 {[%clk 0:02:56]}  Nf6 {[%clk 0:02:51]} 4. e4 {[%clk 0:02:56]}  Nxe4 {[%clk 0:02:50]} 5. Qd3 {[%clk 0:02:56]}  d5 {[%clk 0:02:44]} 6. Qb5+ {[%clk 0:02:56]}  Nd7 {[%clk 0:02:16]} 7. Nxd5 {[%clk 0:02:56]}  c6 {[%clk 0:02:10]} 8. Nc7+ {[%clk 0:02:56]}  Qxc7 {[%clk 0:02:10]} 9. Qxf5 {[%clk 0:02:57]}  Ndf6 {[%clk 0:02:07]} 10. Bd3 {[%clk 0:02:44]}  e6 {[%clk 0:02:05]} 11. Qf4 {[%clk 0:02:37]}  Bb4+ {[%clk 0:02:01]} 12. c3 {[%clk 0:02:25]}  Bd6 {[%clk 0:01:39]} 13. Ne5 {[%clk 0:02:25]}  Nc5 {[%clk 0:01:39]} 14. dxc5 {[%clk 0:02:05]}  Bxe5 {[%clk 0:01:38]} 15. Qf3 {[%clk 0:02:06]}  O-O {[%clk 0:01:34]} 16. Be3 {[%clk 0:01:58]}  Nd5 {[%clk 0:01:33]} 17. Qe4 {[%clk 0:01:52]}  f5 {[%clk 0:01:32]} 18. Qc4 {[%clk 0:01:51]}  b5 {[%clk 0:01:28]} 19. cxb6 {[%clk 0:01:49]}  axb6 {[%clk 0:01:28]} 20. Qb3 {[%clk 0:01:48]}  Nxe3 {[%clk 0:01:21]} 21. Qxe6+ {[%clk 0:01:33]}  Kh8 {[%clk 0:01:20]} 22. fxe3 {[%clk 0:01:34]}  Rae8 {[%clk 0:01:18]} 23. Qb3 {[%clk 0:01:35]}  Bf4 {[%clk 0:00:43]} 24. O-O-O {[%clk 0:01:34]}  Bxe3+ {[%clk 0:00:41]} 25. Kb1 {[%clk 0:01:35]}  b5 {[%clk 0:00:41]} 26. g3 {[%clk 0:01:29]}  g6 {[%clk 0:00:37]} 27. Rhe1 {[%clk 0:01:20]}  f4 {[%clk 0:00:33]} 28. c4 {[%clk 0:01:15]}  f3 {[%clk 0:00:21]} 29. cxb5 {[%clk 0:01:10]}  f2 {[%clk 0:00:21]} 30. Qc3+ {[%clk 0:01:01]}  Qe5 {[%clk 0:00:14]} 31. Rf1 {[%clk 0:01:01]}  cxb5 {[%clk 0:00:13]} 32. Bxb5 {[%clk 0:01:02]}  Qxc3 {[%clk 0:00:10]} 33. bxc3 {[%clk 0:01:02]}  Re5 {[%clk 0:00:07]} 34. a4 {[%clk 0:01:03]}  Bb6 {[%clk 0:00:07]} 35. Kc2 {[%clk 0:01:01]}  Rf3 {[%clk 0:00:07]} 36. Rd6 {[%clk 0:00:57]}  Ba5 {[%clk 0:00:06]} 37. Rd3 {[%clk 0:00:56]}  Rxd3 {[%clk 0:00:04]} 38. Bxd3 {[%clk 0:00:55]}  Bb6 {[%clk 0:00:04]} 39. Rb1 {[%clk 0:00:52]}  Ba7 {[%clk 0:00:04]} 40. Rb7 {[%clk 0:00:52]}  Bc5 {[%clk 0:00:03]} 41. a5 {[%clk 0:00:51]}  Re1 {[%clk 0:00:03]} 42. Rf7 {[%clk 0:00:41]}  Kg8 {[%clk 0:00:01]} 43. Bc4 {[%clk 0:00:42]} 1-0


[Site "https://www.chess.com"]

[Event "Titled Tuesday Blitz August 02 Early 2022"]
[White "Ajay, Karthikeyan"]
[Black "Mardov, Dimitar"]
[WhiteFideId "35011685"]
[BlackFideId "30919495"]
[WhiteElo "2183"]
[BlackElo "2185"]
[Result "1-0"]
[Round "09"]
[TimeControl "180+1"]
[Date "2022.08.02"]
[WhiteClock "0:00:21"]
[BlackClock "0:00:15"]

1. e4 {[%clk 0:03:00]}  e5 {[%clk 0:02:59]} 2. Nf3 {[%clk 0:02:59]}  Nc6 {[%clk 0:03:00]} 3. Bc4 {[%clk 0:02:58]}  Nf6 {[%clk 0:02:59]} 4. Ng5 {[%clk 0:02:58]}  d5 {[%clk 0:02:59]} 5. exd5 {[%clk 0:02:58]}  Na5 {[%clk 0:03:00]} 6. Bb5+ {[%clk 0:02:58]}  c6 {[%clk 0:03:00]} 7. dxc6 {[%clk 0:02:58]}  bxc6 {[%clk 0:03:01]} 8. Bd3 {[%clk 0:02:50]}  Nd5 {[%clk 0:02:58]} 9. Nf3 {[%clk 0:02:48]}  Bd6 {[%clk 0:02:58]} 10. O-O {[%clk 0:02:47]}  O-O {[%clk 0:02:58]} 11. Nc3 {[%clk 0:02:47]}  f5 {[%clk 0:02:56]} 12. Be2 {[%clk 0:02:23]}  e4 {[%clk 0:02:51]} 13. Nxd5 {[%clk 0:02:22]}  cxd5 {[%clk 0:02:36]} 14. Nd4 {[%clk 0:02:22]}  f4 {[%clk 0:02:14]} 15. f3 {[%clk 0:01:34]}  Bc5 {[%clk 0:02:05]} 16. c3 {[%clk 0:01:34]}  Nc6 {[%clk 0:02:02]} 17. Kh1 {[%clk 0:01:25]}  Nxd4 {[%clk 0:01:57]} 18. cxd4 {[%clk 0:01:25]}  Bxd4 {[%clk 0:01:56]} 19. fxe4 {[%clk 0:00:44]}  dxe4 {[%clk 0:01:53]} 20. d3 {[%clk 0:00:43]}  e3 {[%clk 0:01:43]} 21. Qb3+ {[%clk 0:00:42]}  Kh8 {[%clk 0:01:43]} 22. Bf3 {[%clk 0:00:43]}  Bf5 {[%clk 0:01:28]} 23. Bxa8 {[%clk 0:00:38]}  Qxa8 {[%clk 0:00:59]} 24. Rxf4 {[%clk 0:00:37]}  e2 {[%clk 0:00:43]} 25. Bd2 {[%clk 0:00:34]}  Bh3 {[%clk 0:00:42]} 26. Qd5 {[%clk 0:00:20]}  Qe8 {[%clk 0:00:15]} 27. Qxd4 {[%clk 0:00:21]} 1-0


[Site "https://www.chess.com"]

[Event "Titled Tuesday Blitz August 02 Early 2022"]
[White "Aldokhin, Ivan"]
[Black "Rangel, Daniel"]
[WhiteFideId "24115720"]
[BlackFideId "2124475"]
[WhiteElo "2246"]
[BlackElo "2225"]
[Result "1-0"]
[Round "09"]
[TimeControl "180+1"]
[Date "2022.08.02"]
[WhiteClock "0:00:07"]
[BlackClock "0:00:15"]

1. e4 {[%clk 0:03:00]}  c5 {[%clk 0:02:59]} 2. Nf3 {[%clk 0:03:00]}  g6 {[%clk 0:02:59]} 3. d4 {[%clk 0:03:01]}  cxd4 {[%clk 0:02:58]} 4. Nxd4 {[%clk 0:03:02]}  Bg7 {[%clk 0:02:58]} 5. Nc3 {[%clk 0:03:02]}  Nc6 {[%clk 0:02:58]} 6. Be3 {[%clk 0:03:02]}  Nf6 {[%clk 0:02:58]} 7. Bc4 {[%clk 0:03:02]}  O-O {[%clk 0:02:58]} 8. Bb3 {[%clk 0:03:02]}  Re8 {[%clk 0:02:58]} 9. h3 {[%clk 0:02:44]}  e6 {[%clk 0:02:50]} 10. O-O {[%clk 0:02:39]}  d5 {[%clk 0:02:42]} 11. exd5 {[%clk 0:02:35]}  Nxd5 {[%clk 0:02:42]} 12. Nxd5 {[%clk 0:02:27]}  exd5 {[%clk 0:02:41]} 13. Qd2 {[%clk 0:02:21]}  Na5 {[%clk 0:02:34]} 14. Rad1 {[%clk 0:02:15]}  Nc4 {[%clk 0:02:30]} 15. Bxc4 {[%clk 0:02:14]}  dxc4 {[%clk 0:02:31]} 16. Qb4 {[%clk 0:02:13]}  Qb6 {[%clk 0:02:00]} 17. Nb5 {[%clk 0:02:01]}  Qc6 {[%clk 0:01:43]} 18. Rd6 {[%clk 0:01:51]}  a5 {[%clk 0:01:36]} 19. Qa4 {[%clk 0:01:33]}  Qe4 {[%clk 0:01:18]} 20. Nc7 {[%clk 0:01:28]}  Bf5 {[%clk 0:00:53]} 21. Nxa8 {[%clk 0:01:17]}  Rxa8 {[%clk 0:00:54]} 22. Rfd1 {[%clk 0:01:16]}  Bxb2 {[%clk 0:00:48]} 23. Bh6 {[%clk 0:00:46]}  f6 {[%clk 0:00:11]} 24. Rd8+ {[%clk 0:00:23]}  Rxd8 {[%clk 0:00:09]} 25. Rxd8+ {[%clk 0:00:23]}  Kf7 {[%clk 0:00:08]} 26. Rf8+ {[%clk 0:00:15]}  Ke7 {[%clk 0:00:08]} 27. Re8+ {[%clk 0:00:13]}  Kd6 {[%clk 0:00:06]} 28. Rxe4 {[%clk 0:00:12]}  Bxe4 {[%clk 0:00:07]} 29. Qxc4 {[%clk 0:00:09]}  Bd5 {[%clk 0:00:06]} 30. Bf4+ {[%clk 0:00:08]}  Be5 {[%clk 0:00:07]} 31. Bxe5+ {[%clk 0:00:06]}  Kxe5 {[%clk 0:00:08]} 32. Qc5 {[%clk 0:00:05]}  Ke6 {[%clk 0:00:08]} 33. Qxa5 {[%clk 0:00:05]}  h5 {[%clk 0:00:09]} 34. Qb6+ {[%clk 0:00:06]}  Bc6 {[%clk 0:00:10]} 35. Qd4 {[%clk 0:00:05]}  Kf5 {[%clk 0:00:10]} 36. f3 {[%clk 0:00:05]}  g5 {[%clk 0:00:11]} 37. Kf2 {[%clk 0:00:04]}  h4 {[%clk 0:00:10]} 38. Qd3+ {[%clk 0:00:03]}  Ke5 {[%clk 0:00:10]} 39. Qc3+ {[%clk 0:00:04]}  Ke6 {[%clk 0:00:11]} 40. a3 {[%clk 0:00:04]}  Kf5 {[%clk 0:00:12]} 41. Qb4 {[%clk 0:00:05]}  Ke6 {[%clk 0:00:13]} 42. a4 {[%clk 0:00:06]}  Kf7 {[%clk 0:00:14]} 43. a5 {[%clk 0:00:07]}  Bd5 {[%clk 0:00:14]} 44. Qc5 {[%clk 0:00:07]}  Ke6 {[%clk 0:00:15]} 45. c4 {[%clk 0:00:07]}  Bc6 {[%clk 0:00:15]} 46. a6 {[%clk 0:00:07]} 1-0


[Site "https://www.chess.com"]

[Event "Titled Tuesday Blitz August 02 Early 2022"]
[White "Aradhya, Garg"]
[Black "Xiong, Jeffery"]
[WhiteFideId "25006746"]
[BlackFideId "2047640"]
[WhiteElo "2203"]
[BlackElo "2714"]
[Result "1-0"]
[Round "09"]
[TimeControl "180+1"]
[Date "2022.08.02"]
[WhiteClock "0:00:27"]
[BlackClock "0:00:01"]

1. d4 {[%clk 0:03:00]}  g6 {[%clk 0:02:59]} 2. Nf3 {[%clk 0:03:00]}  Bg7 {[%clk 0:02:58]} 3. e4 {[%clk 0:03:00]}  a6 {[%clk 0:02:57]} 4. Bd3 {[%clk 0:02:58]}  d6 {[%clk 0:02:57]} 5. O-O {[%clk 0:02:58]}  Nc6 {[%clk 0:02:56]} 6. c3 {[%clk 0:02:58]}  e5 {[%clk 0:02:55]} 7. dxe5 {[%clk 0:02:57]}  Nxe5 {[%clk 0:02:48]} 8. Nxe5 {[%clk 0:02:57]}  Bxe5 {[%clk 0:02:49]} 9. Nd2 {[%clk 0:02:57]}  Bg7 {[%clk 0:02:49]} 10. Nf3 {[%clk 0:02:56]}  Nf6 {[%clk 0:02:49]} 11. e5 {[%clk 0:02:43]}  dxe5 {[%clk 0:02:48]} 12. Nxe5 {[%clk 0:02:43]}  O-O {[%clk 0:02:48]} 13. Bc4 {[%clk 0:02:44]}  Be6 {[%clk 0:02:45]} 14. Bxe6 {[%clk 0:02:42]}  fxe6 {[%clk 0:02:46]} 15. Qxd8 {[%clk 0:02:37]}  Raxd8 {[%clk 0:02:47]} 16. Bg5 {[%clk 0:02:36]}  Rd5 {[%clk 0:02:46]} 17. Bxf6 {[%clk 0:02:36]}  Bxf6 {[%clk 0:02:45]} 18. Nf3 {[%clk 0:02:37]}  g5 {[%clk 0:02:33]} 19. h3 {[%clk 0:02:32]}  h5 {[%clk 0:02:19]} 20. Rfe1 {[%clk 0:02:31]}  Kf7 {[%clk 0:01:48]} 21. Re4 {[%clk 0:02:29]}  Rfd8 {[%clk 0:01:49]} 22. Rae1 {[%clk 0:02:26]}  R8d6 {[%clk 0:01:49]} 23. Rc4 {[%clk 0:02:20]}  c5 {[%clk 0:01:42]} 24. Rce4 {[%clk 0:02:19]}  b5 {[%clk 0:01:42]} 25. a4 {[%clk 0:02:17]}  c4 {[%clk 0:01:26]} 26. axb5 {[%clk 0:02:15]}  axb5 {[%clk 0:01:27]} 27. g4 {[%clk 0:01:49]}  hxg4 {[%clk 0:01:18]} 28. hxg4 {[%clk 0:01:48]}  Bd8 {[%clk 0:00:50]} 29. Kg2 {[%clk 0:01:46]}  Bb6 {[%clk 0:00:50]} 30. Rh1 {[%clk 0:01:34]}  Kg6 {[%clk 0:00:28]} 31. Rh8 {[%clk 0:01:16]}  Bd8 {[%clk 0:00:28]} 32. Rg8+ {[%clk 0:00:46]}  Kf7 {[%clk 0:00:26]} 33. Rh8 {[%clk 0:00:47]}  Kg7 {[%clk 0:00:26]} 34. Rh1 {[%clk 0:00:45]}  Bf6 {[%clk 0:00:26]} 35. Rb1 {[%clk 0:00:44]}  Ra6 {[%clk 0:00:17]} 36. b3 {[%clk 0:00:44]}  cxb3 {[%clk 0:00:15]} 37. Rxb3 {[%clk 0:00:44]}  Rc6 {[%clk 0:00:13]} 38. Reb4 {[%clk 0:00:34]}  Rcc5 {[%clk 0:00:10]} 39. Nd4 {[%clk 0:00:33]}  Bxd4 {[%clk 0:00:10]} 40. cxd4 {[%clk 0:00:33]}  Rc4 {[%clk 0:00:07]} 41. Rxb5 {[%clk 0:00:33]}  Rcxd4 {[%clk 0:00:08]} 42. Rxd5 {[%clk 0:00:33]}  exd5 {[%clk 0:00:09]} 43. Kg3 {[%clk 0:00:30]}  Rd1 {[%clk 0:00:01]} 44. Rb6 {[%clk 0:00:28]}  d4 {[%clk 0:00:01]} 45. Kf3 {[%clk 0:00:27]}  d3 {[%clk 0:00:01]} 46. Rd6 {[%clk 0:00:27]} 1-0


[Site "https://www.chess.com"]

[Event "Titled Tuesday Blitz August 02 Early 2022"]
[White "Ezat, Mohamed"]
[Black "Csonka, Balazs"]
[WhiteFideId "10600906"]
[BlackFideId "742910"]
[WhiteElo "2386"]
[BlackElo "2404"]
[Result "0-1"]
[Round "09"]
[TimeControl "180+1"]
[Date "2022.08.02"]
[WhiteClock "0:00:14"]
[BlackClock "0:00:09"]

1. d4 {[%clk 0:02:57]}  Nf6 {[%clk 0:02:59]} 2. c4 {[%clk 0:02:55]}  e6 {[%clk 0:02:58]} 3. Nc3 {[%clk 0:02:55]}  d5 {[%clk 0:02:55]} 4. cxd5 {[%clk 0:02:54]}  exd5 {[%clk 0:02:52]} 5. Bg5 {[%clk 0:02:52]}  c6 {[%clk 0:02:52]} 6. Qc2 {[%clk 0:02:52]}  Nbd7 {[%clk 0:02:46]} 7. e3 {[%clk 0:02:52]}  Be7 {[%clk 0:02:44]} 8. Bd3 {[%clk 0:02:46]}  Nh5 {[%clk 0:02:32]} 9. Bxe7 {[%clk 0:02:45]}  Qxe7 {[%clk 0:02:32]} 10. Nge2 {[%clk 0:02:45]}  Nb6 {[%clk 0:02:31]} 11. O-O {[%clk 0:02:44]}  g6 {[%clk 0:02:27]} 12. Rae1 {[%clk 0:02:39]}  O-O {[%clk 0:02:23]} 13. Qd2 {[%clk 0:02:35]}  Re8 {[%clk 0:02:11]} 14. Nf4 {[%clk 0:02:28]}  Qg5 {[%clk 0:01:33]} 15. Nxh5 {[%clk 0:02:24]}  Qxh5 {[%clk 0:01:34]} 16. e4 {[%clk 0:02:24]}  Be6 {[%clk 0:01:09]} 17. e5 {[%clk 0:02:19]}  Rad8 {[%clk 0:01:03]} 18. f4 {[%clk 0:02:18]}  Bf5 {[%clk 0:00:59]} 19. h3 {[%clk 0:02:14]}  Bxd3 {[%clk 0:00:39]} 20. Qxd3 {[%clk 0:02:13]}  f5 {[%clk 0:00:24]} 21. exf6 {[%clk 0:01:51]}  Qh4 {[%clk 0:00:24]} 22. f7+ {[%clk 0:00:33]}  Kxf7 {[%clk 0:00:23]} 23. Re5 {[%clk 0:00:33]}  Nc4 {[%clk 0:00:20]} 24. Qf3 {[%clk 0:00:25]}  Nxe5 {[%clk 0:00:13]} 25. fxe5+ {[%clk 0:00:25]}  Kg8 {[%clk 0:00:12]} 26. Qf7+ {[%clk 0:00:25]}  Kh8 {[%clk 0:00:12]} 27. Ne2 {[%clk 0:00:24]}  Rf8 {[%clk 0:00:07]} 28. Qxb7 {[%clk 0:00:23]}  Rxf1+ {[%clk 0:00:06]} 29. Kxf1 {[%clk 0:00:23]}  Rf8+ {[%clk 0:00:07]} 30. Kg1 {[%clk 0:00:21]}  Qe1+ {[%clk 0:00:06]} 31. Kh2 {[%clk 0:00:20]}  Qxe2 {[%clk 0:00:07]} 32. Qe7 {[%clk 0:00:20]}  Qf2 {[%clk 0:00:07]} 33. e6 {[%clk 0:00:20]}  Qf4+ {[%clk 0:00:07]} 34. Kh1 {[%clk 0:00:20]}  Qc1+ {[%clk 0:00:07]} 35. Kh2 {[%clk 0:00:20]}  Qf4+ {[%clk 0:00:08]} 36. Kh1 {[%clk 0:00:20]}  Qf6 {[%clk 0:00:08]} 37. Qd7 {[%clk 0:00:15]}  Qf1+ {[%clk 0:00:08]} 38. Kh2 {[%clk 0:00:16]}  Qf4+ {[%clk 0:00:09]} 39. Kh1 {[%clk 0:00:16]}  Qxd4 {[%clk 0:00:07]} 40. e7 {[%clk 0:00:14]}  Rf1+ {[%clk 0:00:08]} 41. Kh2 {[%clk 0:00:14]}  Qf4+ {[%clk 0:00:09]} 42. g3 {[%clk 0:00:14]}  Qf2# {[%clk 0:00:09]} 0-1


[Site "https://www.chess.com"]

[Event "Titled Tuesday Blitz August 02 Early 2022"]
[White "Harsha Bharathakoti"]
[Black "Harshavardhan G B"]
[WhiteFideId "5078776"]
[BlackFideId "25059009"]
[WhiteElo "2575"]
[BlackElo "1831"]
[Result "1-0"]
[Round "09"]
[TimeControl "180+1"]
[Date "2022.08.02"]
[WhiteClock "0:00:53"]
[BlackClock "0:00:51"]

1. c4 {[%clk 0:03:00]}  Nf6 {[%clk 0:02:58]} 2. Nc3 {[%clk 0:03:00]}  e5 {[%clk 0:02:58]} 3. Nf3 {[%clk 0:02:59]}  e4 {[%clk 0:02:57]} 4. Ng5 {[%clk 0:02:58]}  b5 {[%clk 0:02:57]} 5. d3 {[%clk 0:02:48]}  exd3 {[%clk 0:02:55]} 6. cxb5 {[%clk 0:02:46]}  dxe2 {[%clk 0:02:54]} 7. Bxe2 {[%clk 0:02:47]}  Bb7 {[%clk 0:02:53]} 8. Bf3 {[%clk 0:02:42]}  d5 {[%clk 0:02:46]} 9. O-O {[%clk 0:02:36]}  Be7 {[%clk 0:02:45]} 10. Qb3 {[%clk 0:02:21]}  Nbd7 {[%clk 0:02:20]} 11. Nxd5 {[%clk 0:02:10]}  Bxd5 {[%clk 0:02:03]} 12. Bxd5 {[%clk 0:02:09]}  Nxd5 {[%clk 0:02:04]} 13. Qxd5 {[%clk 0:02:03]}  O-O {[%clk 0:02:03]} 14. Re1 {[%clk 0:01:51]}  h6 {[%clk 0:01:55]} 15. Nf3 {[%clk 0:01:44]}  Bf6 {[%clk 0:01:53]} 16. Rb1 {[%clk 0:01:37]}  Ne5 {[%clk 0:01:38]} 17. Qxd8 {[%clk 0:01:19]}  Nxf3+ {[%clk 0:01:35]} 18. gxf3 {[%clk 0:01:19]}  Rfxd8 {[%clk 0:01:34]} 19. Bf4 {[%clk 0:01:19]}  Rd5 {[%clk 0:01:30]} 20. a4 {[%clk 0:01:11]}  a6 {[%clk 0:01:27]} 21. Bxc7 {[%clk 0:01:10]}  axb5 {[%clk 0:01:27]} 22. a5 {[%clk 0:01:10]}  b4 {[%clk 0:01:16]} 23. Re4 {[%clk 0:01:09]}  Bd8 {[%clk 0:01:08]} 24. Re8+ {[%clk 0:01:09]}  Kh7 {[%clk 0:01:07]} 25. Rxd8 {[%clk 0:01:03]}  Rdxd8 {[%clk 0:01:05]} 26. Bxd8 {[%clk 0:01:04]}  Rxd8 {[%clk 0:01:05]} 27. Kf1 {[%clk 0:00:56]}  Kg6 {[%clk 0:01:04]} 28. Ke2 {[%clk 0:00:55]}  Kf5 {[%clk 0:01:03]} 29. Ra1 {[%clk 0:00:55]}  Ke5 {[%clk 0:01:01]} 30. a6 {[%clk 0:00:55]}  Ra8 {[%clk 0:00:58]} 31. Kd3 {[%clk 0:00:52]}  Kf4 {[%clk 0:00:57]} 32. Kc4 {[%clk 0:00:52]}  Kxf3 {[%clk 0:00:57]} 33. Kxb4 {[%clk 0:00:53]}  Kxf2 {[%clk 0:00:57]} 34. Ka5 {[%clk 0:00:50]}  g5 {[%clk 0:00:50]} 35. b4 {[%clk 0:00:51]}  g4 {[%clk 0:00:50]} 36. b5 {[%clk 0:00:52]}  f5 {[%clk 0:00:50]} 37. b6 {[%clk 0:00:52]}  f4 {[%clk 0:00:50]} 38. b7 {[%clk 0:00:52]}  Rf8 {[%clk 0:00:50]} 39. a7 {[%clk 0:00:52]}  Kg2 {[%clk 0:00:49]} 40. b8=Q {[%clk 0:00:52]}  Rxb8 {[%clk 0:00:48]} 41. axb8=Q {[%clk 0:00:53]}  Kxh2 {[%clk 0:00:48]} 42. Qxf4+ {[%clk 0:00:53]}  g3 {[%clk 0:00:48]} 43. Ra2+ {[%clk 0:00:53]}  Kh3 {[%clk 0:00:48]} 44. Qxh6+ {[%clk 0:00:53]}  Kg4 {[%clk 0:00:49]} 45. Ra4+ {[%clk 0:00:53]}  Kf3 {[%clk 0:00:49]} 46. Qf4+ {[%clk 0:00:53]}  Kg2 {[%clk 0:00:50]} 47. Ra3 {[%clk 0:00:53]}  Kh3 {[%clk 0:00:51]} 48. Qxg3# {[%clk 0:00:53]} 1-0


[Site "https://www.chess.com"]

[Event "Titled Tuesday Blitz August 02 Early 2022"]
[White "Izoria, Zviad"]
[Black "Shimanov, Aleksandr"]
[WhiteFideId "13601733"]
[BlackFideId "4198603"]
[WhiteElo "2626"]
[BlackElo "2605"]
[Result "1-0"]
[Round "09"]
[TimeControl "180+1"]
[Date "2022.08.02"]
[WhiteClock "0:00:07"]
[BlackClock "0:00:04"]

1. Nf3 {[%clk 0:03:00]}  d5 {[%clk 0:02:59]} 2. d4 {[%clk 0:02:58]}  Nf6 {[%clk 0:02:58]} 3. c4 {[%clk 0:02:57]}  e6 {[%clk 0:02:51]} 4. Nc3 {[%clk 0:02:55]}  Nbd7 {[%clk 0:02:40]} 5. cxd5 {[%clk 0:02:43]}  exd5 {[%clk 0:02:41]} 6. Bg5 {[%clk 0:02:41]}  c6 {[%clk 0:02:38]} 7. e3 {[%clk 0:02:41]}  h6 {[%clk 0:02:32]} 8. Bh4 {[%clk 0:02:30]}  Be7 {[%clk 0:02:28]} 9. Qc2 {[%clk 0:02:21]}  O-O {[%clk 0:02:27]} 10. Bd3 {[%clk 0:02:20]}  Re8 {[%clk 0:02:26]} 11. Nd2 {[%clk 0:02:11]}  b5 {[%clk 0:02:11]} 12. O-O {[%clk 0:02:10]}  Bb7 {[%clk 0:02:09]} 13. Nb3 {[%clk 0:01:47]}  a5 {[%clk 0:01:55]} 14. a4 {[%clk 0:01:45]}  b4 {[%clk 0:01:55]} 15. Ne2 {[%clk 0:01:45]}  Rc8 {[%clk 0:01:56]} 16. Rac1 {[%clk 0:01:27]}  Qb6 {[%clk 0:01:14]} 17. Bf5 {[%clk 0:01:21]}  Rcd8 {[%clk 0:01:14]} 18. Bxd7 {[%clk 0:01:08]}  Rxd7 {[%clk 0:01:06]} 19. Nc5 {[%clk 0:01:01]}  Rc7 {[%clk 0:00:49]} 20. Bxf6 {[%clk 0:00:54]}  Bxf6 {[%clk 0:00:47]} 21. Nxb7 {[%clk 0:00:49]}  Qxb7 {[%clk 0:00:48]} 22. Nf4 {[%clk 0:00:49]}  Rcc8 {[%clk 0:00:44]} 23. b3 {[%clk 0:00:42]}  Be7 {[%clk 0:00:41]} 24. Qf5 {[%clk 0:00:40]}  Bd6 {[%clk 0:00:39]} 25. Rc2 {[%clk 0:00:39]}  Rc7 {[%clk 0:00:15]} 26. Rfc1 {[%clk 0:00:35]}  Rec8 {[%clk 0:00:14]} 27. g3 {[%clk 0:00:34]}  Bf8 {[%clk 0:00:13]} 28. Nd3 {[%clk 0:00:33]}  Bd6 {[%clk 0:00:13]} 29. Nc5 {[%clk 0:00:33]}  Bxc5 {[%clk 0:00:08]} 30. Rxc5 {[%clk 0:00:34]}  Qa6 {[%clk 0:00:07]} 31. Qc2 {[%clk 0:00:31]}  h5 {[%clk 0:00:05]} 32. h4 {[%clk 0:00:30]}  g6 {[%clk 0:00:06]} 33. Qd1 {[%clk 0:00:30]}  Qb6 {[%clk 0:00:05]} 34. Qd3 {[%clk 0:00:28]}  Re8 {[%clk 0:00:04]} 35. Kg2 {[%clk 0:00:27]}  Rec8 {[%clk 0:00:03]} 36. Qc2 {[%clk 0:00:26]}  Qa6 {[%clk 0:00:03]} 37. e4 {[%clk 0:00:21]}  dxe4 {[%clk 0:00:04]} 38. Qxe4 {[%clk 0:00:22]}  Qb7 {[%clk 0:00:04]} 39. R1c4 {[%clk 0:00:21]}  Re7 {[%clk 0:00:04]} 40. Qf3 {[%clk 0:00:20]}  Rce8 {[%clk 0:00:04]} 41. Rxc6 {[%clk 0:00:18]}  Qd7 {[%clk 0:00:05]} 42. d5 {[%clk 0:00:16]}  Re5 {[%clk 0:00:05]} 43. d6 {[%clk 0:00:14]}  Qe6 {[%clk 0:00:05]} 44. R4c5 {[%clk 0:00:12]}  Rxc5 {[%clk 0:00:04]} 45. Rxc5 {[%clk 0:00:13]}  Qxd6 {[%clk 0:00:04]} 46. Rxa5 {[%clk 0:00:13]}  Re1 {[%clk 0:00:04]} 47. Rd5 {[%clk 0:00:11]}  Qe6 {[%clk 0:00:04]} 48. Rd1 {[%clk 0:00:10]}  Re2 {[%clk 0:00:04]} 49. Rd3 {[%clk 0:00:11]}  Ra2 {[%clk 0:00:04]} 50. Re3 {[%clk 0:00:10]}  Qd7 {[%clk 0:00:04]} 51. Qe4 {[%clk 0:00:09]}  Qd6 {[%clk 0:00:03]} 52. Rf3 {[%clk 0:00:10]}  Kg7 {[%clk 0:00:03]} 53. Qc4 {[%clk 0:00:10]}  Qe7 {[%clk 0:00:02]} 54. Qd4+ {[%clk 0:00:09]}  Kh7 {[%clk 0:00:02]} 55. Qf6 {[%clk 0:00:08]}  Qxf6 {[%clk 0:00:02]} 56. Rxf6 {[%clk 0:00:09]}  Kg7 {[%clk 0:00:03]} 57. Rb6 {[%clk 0:00:09]}  Ra3 {[%clk 0:00:03]} 58. Rxb4 {[%clk 0:00:09]}  Kf6 {[%clk 0:00:04]} 59. Kf3 {[%clk 0:00:09]}  Ke5 {[%clk 0:00:04]} 60. Ke3 {[%clk 0:00:10]}  Kf5 {[%clk 0:00:04]} 61. Kd3 {[%clk 0:00:10]}  f6 {[%clk 0:00:04]} 62. Kc3 {[%clk 0:00:10]}  Ra2 {[%clk 0:00:05]} 63. Rf4+ {[%clk 0:00:10]}  Ke5 {[%clk 0:00:05]} 64. Kb4 {[%clk 0:00:09]}  g5 {[%clk 0:00:05]} 65. hxg5 {[%clk 0:00:10]}  fxg5 {[%clk 0:00:06]} 66. Rf8 {[%clk 0:00:11]}  Ra1 {[%clk 0:00:05]} 67. a5 {[%clk 0:00:10]}  h4 {[%clk 0:00:06]} 68. gxh4 {[%clk 0:00:10]}  gxh4 {[%clk 0:00:07]} 69. Rh8 {[%clk 0:00:09]}  Rh1 {[%clk 0:00:06]} 70. a6 {[%clk 0:00:09]}  Ra1 {[%clk 0:00:06]} 71. Kb5 {[%clk 0:00:09]}  Rh1 {[%clk 0:00:05]} 72. a7 {[%clk 0:00:09]}  Rb1 {[%clk 0:00:04]} 73. a8=Q {[%clk 0:00:07]} 1-0


[Site "https://www.chess.com"]